[Event "Titled Tuesday Blitz February 14 Late 2023"]
[White "Martinez Reyes, Pedro Ramon"]
[Black "Gonzalez, Francisco Silva"]
[WhiteFideId "3901807"]
[BlackFideId "1512285"]
[WhiteElo "2376"]
[BlackElo "2021"]
[Result "0-1"]
[Round "05"]
[TimeControl "180+2"]
[Date "2023.02.14"]
[WhiteClock "0:00:13"]
[BlackClock "0:00:58"]

1. c4 {[%clk 0:02:56]}  e6 {[%clk 0:02:59]} 2. Nc3 {[%clk 0:02:54]}  d5 {[%clk 0:02:59]} 3. d4 {[%clk 0:02:54]}  a6 {[%clk 0:02:58]} 4. cxd5 {[%clk 0:02:51]}  exd5 {[%clk 0:02:58]} 5. Nf3 {[%clk 0:02:52]}  Be6 {[%clk 0:02:57]} 6. Bg5 {[%clk 0:02:52]}  Nf6 {[%clk 0:02:57]} 7. Qb3 {[%clk 0:02:49]}  b5 {[%clk 0:02:51]} 8. e3 {[%clk 0:02:38]}  Nbd7 {[%clk 0:02:49]} 9. Be2 {[%clk 0:02:38]}  c5 {[%clk 0:02:48]} 10. dxc5 {[%clk 0:02:35]}  d4 {[%clk 0:02:48]} 11. c6 {[%clk 0:02:25]}  Bxb3 {[%clk 0:02:44]} 12. cxd7+ {[%clk 0:02:23]}  Qxd7 {[%clk 0:02:42]} 13. Nxd4 {[%clk 0:02:17]}  Bc4 {[%clk 0:02:32]} 14. Bf3 {[%clk 0:02:17]}  Rc8 {[%clk 0:02:29]} 15. Rd1 {[%clk 0:02:07]}  Bb4 {[%clk 0:02:27]} 16. Ne2 {[%clk 0:01:41]}  Qe6 {[%clk 0:02:17]} 17. O-O {[%clk 0:01:34]}  O-O {[%clk 0:02:17]} 18. Nf4 {[%clk 0:01:32]}  Qe5 {[%clk 0:02:16]} 19. Bxf6 {[%clk 0:01:33]}  Qxf6 {[%clk 0:02:13]} 20. Ncd5 {[%clk 0:01:33]}  Qd6 {[%clk 0:02:07]} 21. a3 {[%clk 0:01:19]}  Bxf1 {[%clk 0:02:05]} 22. Nxb4 {[%clk 0:01:16]}  Qxd1 {[%clk 0:02:01]} 23. Bxd1 {[%clk 0:01:13]}  Rc1 {[%clk 0:02:01]} 24. Kxf1 {[%clk 0:01:11]}  Rxd1+ {[%clk 0:02:00]} 25. Ke2 {[%clk 0:01:12]}  Rfd8 {[%clk 0:01:57]} 26. Nfd3 {[%clk 0:00:59]}  R1xd3 {[%clk 0:01:50]} 27. Nxd3 {[%clk 0:00:57]}  a5 {[%clk 0:01:50]} 28. Kd2 {[%clk 0:00:52]}  f5 {[%clk 0:01:47]} 29. Kc3 {[%clk 0:00:51]}  Kf7 {[%clk 0:01:43]} 30. Ne5+ {[%clk 0:00:51]}  Ke6 {[%clk 0:01:43]} 31. Nd3 {[%clk 0:00:51]}  Rc8+ {[%clk 0:01:42]} 32. Kd2 {[%clk 0:00:47]}  g5 {[%clk 0:01:39]} 33. Nc1 {[%clk 0:00:32]}  Kd5 {[%clk 0:01:36]} 34. Nb3 {[%clk 0:00:32]}  a4 {[%clk 0:01:34]} 35. Nd4 {[%clk 0:00:33]}  Kc4 {[%clk 0:01:25]} 36. Kc2 {[%clk 0:00:24]}  f4 {[%clk 0:01:24]} 37. Nf5 {[%clk 0:00:22]}  Kd5+ {[%clk 0:01:20]} 38. Kd2 {[%clk 0:00:21]}  Ke5 {[%clk 0:01:20]} 39. Nd4 {[%clk 0:00:20]}  Rd8 {[%clk 0:01:19]} 40. Kc3 {[%clk 0:00:20]}  fxe3 {[%clk 0:01:10]} 41. fxe3 {[%clk 0:00:19]}  Ke4 {[%clk 0:01:09]} 42. Nxb5 {[%clk 0:00:19]}  Kxe3 {[%clk 0:01:08]} 43. Kb4 {[%clk 0:00:19]}  Rd2 {[%clk 0:01:05]} 44. b3 {[%clk 0:00:16]}  axb3 {[%clk 0:01:05]} 45. Kxb3 {[%clk 0:00:17]}  Rxg2 {[%clk 0:01:05]} 46. a4 {[%clk 0:00:18]}  Rf2 {[%clk 0:01:04]} 47. a5 {[%clk 0:00:18]}  Rf8 {[%clk 0:01:03]} 48. a6 {[%clk 0:00:18]}  Kf3 {[%clk 0:01:03]} 49. a7 {[%clk 0:00:18]}  Ra8 {[%clk 0:01:01]} 50. Kb4 {[%clk 0:00:12]}  Kg2 {[%clk 0:01:00]} 51. Kc5 {[%clk 0:00:12]}  h5 {[%clk 0:01:00]} 52. Kb6 {[%clk 0:00:12]}  Kxh2 {[%clk 0:01:00]} 53. Nd4 {[%clk 0:00:13]}  g4 {[%clk 0:00:59]} 54. Kb7 {[%clk 0:00:11]}  Rxa7+ {[%clk 0:00:59]} 55. Kxa7 {[%clk 0:00:12]}  Kg2 {[%clk 0:00:57]} 56. Kb6 {[%clk 0:00:13]}  h4 {[%clk 0:00:57]} 57. Kc5 {[%clk 0:00:13]}  h3 {[%clk 0:00:58]} 58. Ne2 {[%clk 0:00:13]} 0-1


[Site "https://www.chess.com"]

[Event "Titled Tuesday Blitz February 14 Late 2023"]
[White "Chor, Kevin"]
[Black "Sliwicki, Damian"]
[WhiteFideId "2090740"]
[BlackFideId "1127128"]
[WhiteElo "1944"]
[BlackElo "2158"]
[Result "1-0"]
[Round "05"]
[TimeControl "180+2"]
[Date "2023.02.14"]
[WhiteClock "0:00:14"]
[BlackClock "0:00:09"]

1. e4 {[%clk 0:03:00]}  c5 {[%clk 0:02:59]} 2. Nf3 {[%clk 0:03:00]}  g6 {[%clk 0:02:55]} 3. d4 {[%clk 0:03:00]}  cxd4 {[%clk 0:02:49]} 4. Nxd4 {[%clk 0:02:58]}  Nc6 {[%clk 0:02:48]} 5. Nc3 {[%clk 0:02:55]}  Bg7 {[%clk 0:02:46]} 6. Be3 {[%clk 0:02:55]}  Nf6 {[%clk 0:02:44]} 7. Bc4 {[%clk 0:02:55]}  O-O {[%clk 0:02:43]} 8. Bb3 {[%clk 0:02:54]}  Ng4 {[%clk 0:02:38]} 9. Qd2 {[%clk 0:02:18]}  Nxe3 {[%clk 0:02:30]} 10. fxe3 {[%clk 0:02:15]}  Qa5 {[%clk 0:01:58]} 11. O-O-O {[%clk 0:02:07]}  d6 {[%clk 0:01:52]} 12. Kb1 {[%clk 0:02:00]}  Kh8 {[%clk 0:01:38]} 13. Rdf1 {[%clk 0:01:42]}  Nxd4 {[%clk 0:01:29]} 14. exd4 {[%clk 0:01:40]}  Be6 {[%clk 0:01:30]} 15. h4 {[%clk 0:01:20]}  Bxb3 {[%clk 0:01:29]} 16. axb3 {[%clk 0:01:17]}  h6 {[%clk 0:00:50]} 17. g4 {[%clk 0:01:05]}  Rac8 {[%clk 0:00:46]} 18. h5 {[%clk 0:00:46]}  g5 {[%clk 0:00:45]} 19. Rf5 {[%clk 0:00:46]}  Qb4 {[%clk 0:00:44]} 20. Rd1 {[%clk 0:00:45]}  a6 {[%clk 0:00:39]} 21. Qf2 {[%clk 0:00:37]}  Rxc3 {[%clk 0:00:19]} 22. bxc3 {[%clk 0:00:37]}  Qxc3 {[%clk 0:00:20]} 23. Rd3 {[%clk 0:00:37]}  Qb4 {[%clk 0:00:17]} 24. Rxf7 {[%clk 0:00:37]}  Rc8 {[%clk 0:00:16]} 25. Qf5 {[%clk 0:00:20]}  Qe1+ {[%clk 0:00:13]} 26. Kb2 {[%clk 0:00:20]}  Qe2 {[%clk 0:00:10]} 27. Qxc8+ {[%clk 0:00:18]}  Kh7 {[%clk 0:00:10]} 28. Qf5+ {[%clk 0:00:14]}  Kg8 {[%clk 0:00:09]} 29. Qg6 {[%clk 0:00:14]} 1-0


[Site "https://www.chess.com"]

[Event "Titled Tuesday Blitz February 14 Late 2023"]
[White "O`Gorman, Tom"]
[Black "Torres Dominguez, David"]
[WhiteFideId "2508249"]
[BlackFideId "2220857"]
[WhiteElo "2355"]
[BlackElo "1994"]
[Result "1/2-1/2"]
[Round "05"]
[TimeControl "180+2"]
[Date "2023.02.14"]
[WhiteClock "0:00:19"]
[BlackClock "0:00:03"]

1. e4 {[%clk 0:03:00]}  Nc6 {[%clk 0:02:58]} 2. Nf3 {[%clk 0:03:00]}  e5 {[%clk 0:02:58]} 3. Bb5 {[%clk 0:02:59]}  Nge7 {[%clk 0:02:59]} 4. O-O {[%clk 0:02:58]}  g6 {[%clk 0:02:58]} 5. Re1 {[%clk 0:02:58]}  Bg7 {[%clk 0:02:58]} 6. c3 {[%clk 0:02:58]}  O-O {[%clk 0:02:59]} 7. d4 {[%clk 0:02:58]}  d5 {[%clk 0:02:59]} 8. exd5 {[%clk 0:02:57]}  Qxd5 {[%clk 0:03:00]} 9. c4 {[%clk 0:02:53]}  Qd6 {[%clk 0:02:55]} 10. d5 {[%clk 0:02:53]}  Nd4 {[%clk 0:02:40]} 11. Nxd4 {[%clk 0:02:51]}  exd4 {[%clk 0:02:40]} 12. Bg5 {[%clk 0:02:44]}  Nf5 {[%clk 0:02:24]} 13. Nd2 {[%clk 0:02:43]}  f6 {[%clk 0:02:14]} 14. Ne4 {[%clk 0:02:43]}  Qd8 {[%clk 0:01:55]} 15. Bf4 {[%clk 0:02:40]}  a6 {[%clk 0:01:51]} 16. Ba4 {[%clk 0:02:39]}  b5 {[%clk 0:01:50]} 17. cxb5 {[%clk 0:02:37]}  axb5 {[%clk 0:01:48]} 18. Bb3 {[%clk 0:02:35]}  Nd6 {[%clk 0:01:40]} 19. Nxd6 {[%clk 0:02:33]}  cxd6 {[%clk 0:01:40]} 20. Qxd4 {[%clk 0:02:34]}  f5 {[%clk 0:01:38]} 21. Qd2 {[%clk 0:02:34]}  Qb6 {[%clk 0:01:16]} 22. Rac1 {[%clk 0:02:32]}  Bd7 {[%clk 0:01:14]} 23. Re7 {[%clk 0:02:25]}  Rad8 {[%clk 0:01:05]} 24. Be3 {[%clk 0:01:45]}  Qb7 {[%clk 0:00:56]} 25. Rc6 {[%clk 0:01:34]}  Bf6 {[%clk 0:00:50]} 26. Bg5 {[%clk 0:01:23]}  Bxe7 {[%clk 0:00:48]} 27. Bxe7 {[%clk 0:01:24]}  Rde8 {[%clk 0:00:35]} 28. Bxf8 {[%clk 0:01:22]}  Kxf8 {[%clk 0:00:35]} 29. Qh6+ {[%clk 0:01:11]}  Kg8 {[%clk 0:00:33]} 30. h4 {[%clk 0:01:12]}  Qa7 {[%clk 0:00:18]} 31. Rxd6 {[%clk 0:00:55]}  Re1+ {[%clk 0:00:14]} 32. Kh2 {[%clk 0:00:55]}  Qxf2 {[%clk 0:00:12]} 33. Rxd7 {[%clk 0:00:20]}  Qg1+ {[%clk 0:00:12]} 34. Kg3 {[%clk 0:00:20]}  Re3+ {[%clk 0:00:13]} 35. Kf4 {[%clk 0:00:20]}  Qf2+ {[%clk 0:00:13]} 36. Kg5 {[%clk 0:00:20]}  Qg3+ {[%clk 0:00:03]} 37. Kf6 {[%clk 0:00:20]}  Qe5+ {[%clk 0:00:03]} 38. Kg5 {[%clk 0:00:18]}  Qg3+ {[%clk 0:00:02]} 39. Kf6 {[%clk 0:00:19]}  Qe5+ {[%clk 0:00:03]} 40. Kg5 {[%clk 0:00:19]}  Qg3+ {[%clk 0:00:03]} 1/2-1/2


[Site "https://www.chess.com"]

[Event "Titled Tuesday Blitz February 14 Late 2023"]
[White "Smith, Garrett L"]
[Black "Bongo Akanga Ndjila, Barthelemy"]
[WhiteFideId "2024829"]
[BlackFideId "10609431"]
[WhiteElo "2047"]
[BlackElo "1824"]
[Result "1-0"]
[Round "05"]
[TimeControl "180+2"]
[Date "2023.02.14"]
[WhiteClock "0:00:28"]
[BlackClock "0:00:11"]

1. e4 {[%clk 0:03:00]}  e6 {[%clk 0:02:16]} 2. d4 {[%clk 0:02:21]}  d5 {[%clk 0:02:16]} 3. Nc3 {[%clk 0:02:22]}  Nf6 {[%clk 0:02:16]} 4. e5 {[%clk 0:02:22]}  Nfd7 {[%clk 0:02:16]} 5. f4 {[%clk 0:02:23]}  c5 {[%clk 0:02:16]} 6. Nf3 {[%clk 0:02:24]}  Nc6 {[%clk 0:02:16]} 7. Be3 {[%clk 0:02:24]}  a6 {[%clk 0:02:14]} 8. Qd2 {[%clk 0:02:25]}  b5 {[%clk 0:02:12]} 9. dxc5 {[%clk 0:02:25]}  Nxc5 {[%clk 0:02:08]} 10. O-O-O {[%clk 0:02:19]}  b4 {[%clk 0:02:08]} 11. Ne2 {[%clk 0:01:59]}  Ne4 {[%clk 0:02:07]} 12. Qe1 {[%clk 0:02:00]}  Qa5 {[%clk 0:02:03]} 13. Kb1 {[%clk 0:01:59]}  Bc5 {[%clk 0:01:49]} 14. Ned4 {[%clk 0:01:50]}  Bd7 {[%clk 0:01:34]} 15. Nb3 {[%clk 0:01:45]}  Qb6 {[%clk 0:01:32]} 16. Nxc5 {[%clk 0:01:44]}  Nxc5 {[%clk 0:01:31]} 17. Qf2 {[%clk 0:01:43]}  d4 {[%clk 0:01:11]} 18. Nxd4 {[%clk 0:01:43]}  Ne4 {[%clk 0:01:09]} 19. Qf3 {[%clk 0:01:22]}  Nc3+ {[%clk 0:01:08]} 20. bxc3 {[%clk 0:01:21]}  bxc3+ {[%clk 0:01:08]} 21. Nb3 {[%clk 0:01:21]}  Qb4 {[%clk 0:01:01]} 22. Bc5 {[%clk 0:01:18]}  Qa4 {[%clk 0:01:00]} 23. Qxc3 {[%clk 0:01:14]}  Rc8 {[%clk 0:00:52]} 24. Qd3 {[%clk 0:01:08]}  Nb8 {[%clk 0:00:46]} 25. Bd6 {[%clk 0:01:01]}  Bb5 {[%clk 0:00:43]} 26. Qd2 {[%clk 0:00:52]}  Nc6 {[%clk 0:00:42]} 27. Bc5 {[%clk 0:00:43]}  Rd8 {[%clk 0:00:31]} 28. Bd3 {[%clk 0:00:42]}  Bxd3 {[%clk 0:00:19]} 29. cxd3 {[%clk 0:00:41]}  Ne7 {[%clk 0:00:17]} 30. Bxe7 {[%clk 0:00:34]}  Kxe7 {[%clk 0:00:17]} 31. Qc3 {[%clk 0:00:33]}  Rc8 {[%clk 0:00:17]} 32. Qd4 {[%clk 0:00:32]}  Qb5 {[%clk 0:00:14]} 33. Rc1 {[%clk 0:00:30]}  Rcd8 {[%clk 0:00:12]} 34. Qc5+ {[%clk 0:00:28]}  Qxc5 {[%clk 0:00:12]} 35. Nxc5 {[%clk 0:00:28]}  Rxd3 {[%clk 0:00:11]} 36. Nxd3 {[%clk 0:00:28]} 1-0


[Site "https://www.chess.com"]

[Event "Titled Tuesday Blitz February 14 Late 2023"]
[White "Maksimovic, Bojan"]
[Black "Sabar, Ethmane Daouda"]
[WhiteFideId "14408120"]
[BlackFideId "19600097"]
[WhiteElo "2486"]
[BlackElo "2040"]
[Result "1-0"]
[Round "05"]
[TimeControl "180+2"]
[Date "2023.02.14"]
[WhiteClock "0:01:44"]
[BlackClock "0:00:09"]

1. e4 {[%clk 0:02:51]}  e5 {[%clk 0:03:00]} 2. Nf3 {[%clk 0:02:49]}  Nc6 {[%clk 0:03:00]} 3. Bb5 {[%clk 0:02:49]}  f5 {[%clk 0:03:00]} 4. d3 {[%clk 0:02:47]}  fxe4 {[%clk 0:02:59]} 5. dxe4 {[%clk 0:02:48]}  Nf6 {[%clk 0:03:00]} 6. Bc4 {[%clk 0:02:49]}  Nxe4 {[%clk 0:02:01]} 7. O-O {[%clk 0:02:24]}  Nd6 {[%clk 0:02:00]} 8. Bb3 {[%clk 0:02:19]}  Be7 {[%clk 0:01:59]} 9. Nc3 {[%clk 0:02:19]}  Na5 {[%clk 0:01:53]} 10. Nxe5 {[%clk 0:02:12]}  Nxb3 {[%clk 0:01:52]} 11. Qh5+ {[%clk 0:02:12]}  Kf8 {[%clk 0:01:26]} 12. Ng6+ {[%clk 0:02:02]}  Kg8 {[%clk 0:01:26]} 13. Nxe7+ {[%clk 0:01:53]}  Qxe7 {[%clk 0:01:23]} 14. Nd5 {[%clk 0:01:54]}  Qf7 {[%clk 0:01:10]} 15. Qxf7+ {[%clk 0:01:54]}  Kxf7 {[%clk 0:01:11]} 16. axb3 {[%clk 0:01:54]}  c6 {[%clk 0:01:06]} 17. Nb6 {[%clk 0:01:51]}  Rb8 {[%clk 0:00:59]} 18. Bf4 {[%clk 0:01:51]}  Nf5 {[%clk 0:00:35]} 19. Bxb8 {[%clk 0:01:52]}  axb6 {[%clk 0:00:35]} 20. Rfe1 {[%clk 0:01:53]}  d5 {[%clk 0:00:34]} 21. Ba7 {[%clk 0:01:47]}  b5 {[%clk 0:00:32]} 22. Bc5 {[%clk 0:01:48]}  Re8 {[%clk 0:00:29]} 23. Rxe8 {[%clk 0:01:48]}  Kxe8 {[%clk 0:00:30]} 24. f3 {[%clk 0:01:48]}  Kd7 {[%clk 0:00:24]} 25. Re1 {[%clk 0:01:49]}  g6 {[%clk 0:00:17]} 26. g4 {[%clk 0:01:49]}  Nd6 {[%clk 0:00:17]} 27. Kf2 {[%clk 0:01:48]}  Ne8 {[%clk 0:00:14]} 28. Re7+ {[%clk 0:01:48]}  Kd8 {[%clk 0:00:14]} 29. Rxh7 {[%clk 0:01:48]}  Bd7 {[%clk 0:00:12]} 30. h4 {[%clk 0:01:45]}  Kc7 {[%clk 0:00:13]} 31. Bd4 {[%clk 0:01:42]}  Kd6 {[%clk 0:00:11]} 32. b4 {[%clk 0:01:43]}  b6 {[%clk 0:00:10]} 33. Bxb6 {[%clk 0:01:43]}  Nf6 {[%clk 0:00:09]} 34. Bc5+ {[%clk 0:01:43]}  Ke6 {[%clk 0:00:09]} 35. Re7# {[%clk 0:01:44]} 1-0


[Site "https://www.chess.com"]

[Event "Titled Tuesday Blitz February 14 Late 2023"]
[White "Sztokbant, Bernardo Vainzoff"]
[Black "Danielyan, Vahe"]
[WhiteFideId "2115956"]
[BlackFideId "13304828"]
[WhiteElo "2213"]
[BlackElo "2346"]
[Result "0-1"]
[Round "05"]
[TimeControl "180+2"]
[Date "2023.02.14"]
[WhiteClock "0:00:04"]
[BlackClock "0:01:41"]

1. e4 {[%clk 0:03:00]}  c5 {[%clk 0:02:59]} 2. Nf3 {[%clk 0:02:54]}  d6 {[%clk 0:02:58]} 3. d4 {[%clk 0:02:52]}  cxd4 {[%clk 0:02:59]} 4. Nxd4 {[%clk 0:02:53]}  Nf6 {[%clk 0:02:59]} 5. Nc3 {[%clk 0:02:53]}  Bd7 {[%clk 0:02:59]} 6. Be2 {[%clk 0:02:51]}  Nc6 {[%clk 0:02:58]} 7. O-O {[%clk 0:02:51]}  g6 {[%clk 0:02:58]} 8. Be3 {[%clk 0:02:52]}  Bg7 {[%clk 0:02:58]} 9. f4 {[%clk 0:02:52]}  O-O {[%clk 0:02:59]} 10. Kh1 {[%clk 0:02:52]}  a6 {[%clk 0:02:57]} 11. a4 {[%clk 0:02:51]}  Rc8 {[%clk 0:02:55]} 12. Nb3 {[%clk 0:02:51]}  Na5 {[%clk 0:02:52]} 13. e5 {[%clk 0:02:40]}  Ne8 {[%clk 0:02:51]} 14. Nd5 {[%clk 0:01:52]}  Nxb3 {[%clk 0:02:49]} 15. Bb6 {[%clk 0:01:47]}  Nc7 {[%clk 0:02:37]} 16. cxb3 {[%clk 0:01:47]}  Bc6 {[%clk 0:02:32]} 17. Nxc7 {[%clk 0:01:44]}  Rxc7 {[%clk 0:02:33]} 18. Rc1 {[%clk 0:01:29]}  Bxg2+ {[%clk 0:02:16]} 19. Kxg2 {[%clk 0:01:29]}  Rxc1 {[%clk 0:02:17]} 20. Bxd8 {[%clk 0:01:28]}  Rxd1 {[%clk 0:02:17]} 21. Bxe7 {[%clk 0:00:57]}  Rxf1 {[%clk 0:02:14]} 22. Bxf1 {[%clk 0:00:39]}  dxe5 {[%clk 0:02:14]} 23. Bxf8 {[%clk 0:00:37]}  Kxf8 {[%clk 0:02:15]} 24. fxe5 {[%clk 0:00:30]}  Bxe5 {[%clk 0:02:16]} 25. Bc4 {[%clk 0:00:25]}  a5 {[%clk 0:02:13]} 26. b4 {[%clk 0:00:20]}  axb4 {[%clk 0:02:12]} 27. a5 {[%clk 0:00:19]}  Bc7 {[%clk 0:02:11]} 28. Bd5 {[%clk 0:00:18]}  Bxa5 {[%clk 0:02:08]} 29. Bxb7 {[%clk 0:00:19]}  f5 {[%clk 0:02:07]} 30. Bd5 {[%clk 0:00:18]}  Kg7 {[%clk 0:02:08]} 31. b3 {[%clk 0:00:18]}  Kf6 {[%clk 0:02:09]} 32. Kf3 {[%clk 0:00:18]}  Bc7 {[%clk 0:02:08]} 33. h3 {[%clk 0:00:18]}  h6 {[%clk 0:02:08]} 34. Bc4 {[%clk 0:00:18]}  Ke5 {[%clk 0:02:08]} 35. Bf7 {[%clk 0:00:18]}  g5 {[%clk 0:02:09]} 36. Be8 {[%clk 0:00:16]}  Kf6 {[%clk 0:02:03]} 37. Bd7 {[%clk 0:00:16]}  h5 {[%clk 0:02:03]} 38. Be8 {[%clk 0:00:11]}  g4+ {[%clk 0:02:04]} 39. Kg2 {[%clk 0:00:11]}  h4 {[%clk 0:02:01]} 40. Bd7 {[%clk 0:00:10]}  Kg5 {[%clk 0:02:01]} 41. Bc8 {[%clk 0:00:09]}  Kf4 {[%clk 0:01:56]} 42. Bd7 {[%clk 0:00:07]}  Bb6 {[%clk 0:01:55]} 43. Bc8 {[%clk 0:00:07]}  Bd8 {[%clk 0:01:43]} 44. Bd7 {[%clk 0:00:07]}  gxh3+ {[%clk 0:01:38]} 45. Kxh3 {[%clk 0:00:08]}  Ke4 {[%clk 0:01:39]} 46. Bc6+ {[%clk 0:00:07]}  Ke3 {[%clk 0:01:40]} 47. Kg2 {[%clk 0:00:06]}  f4 {[%clk 0:01:41]} 48. Bd5 {[%clk 0:00:05]}  f3+ {[%clk 0:01:41]} 49. Kf1 {[%clk 0:00:04]}  h3 {[%clk 0:01:41]} 50. Bc4 {[%clk 0:00:04]}  h2 {[%clk 0:01:41]} 0-1


[Site "https://www.chess.com"]

[Event "Titled Tuesday Blitz February 14 Late 2023"]
[White "Ansh M Shah"]
[Black "Jeet, Jain"]
[WhiteFideId "25033379"]
[BlackFideId "5073022"]
[WhiteElo "2171"]
[BlackElo "2199"]
[Result "0-1"]
[Round "05"]
[TimeControl "180+2"]
[Date "2023.02.14"]
[WhiteClock "0:00:02"]
[BlackClock "0:00:41"]

1. d4 {[%clk 0:03:00]}  d5 {[%clk 0:02:48]} 2. c4 {[%clk 0:03:00]}  c6 {[%clk 0:02:48]} 3. cxd5 {[%clk 0:03:00]}  Qxd5 {[%clk 0:02:47]} 4. Nc3 {[%clk 0:03:01]}  Qa5 {[%clk 0:02:47]} 5. e4 {[%clk 0:03:00]}  e5 {[%clk 0:02:45]} 6. dxe5 {[%clk 0:02:56]}  Qxe5 {[%clk 0:02:43]} 7. Nf3 {[%clk 0:02:51]}  Qc7 {[%clk 0:02:43]} 8. Bc4 {[%clk 0:02:48]}  Be7 {[%clk 0:02:37]} 9. O-O {[%clk 0:02:48]}  Bg4 {[%clk 0:02:36]} 10. h3 {[%clk 0:02:46]}  Bh5 {[%clk 0:02:36]} 11. g4 {[%clk 0:02:44]}  Bg6 {[%clk 0:02:36]} 12. e5 {[%clk 0:02:31]}  Nd7 {[%clk 0:02:28]} 13. Bf4 {[%clk 0:01:59]}  O-O-O {[%clk 0:02:15]} 14. Qb3 {[%clk 0:01:55]}  Nc5 {[%clk 0:02:12]} 15. Qa3 {[%clk 0:01:43]}  Nd3 {[%clk 0:02:09]} 16. Qxa7 {[%clk 0:01:36]}  Nxf4 {[%clk 0:02:09]} 17. Na4 {[%clk 0:00:56]}  Kd7 {[%clk 0:01:57]} 18. Qd4+ {[%clk 0:00:49]}  Nd5 {[%clk 0:01:35]} 19. Bxd5 {[%clk 0:00:49]}  cxd5 {[%clk 0:01:34]} 20. Rac1 {[%clk 0:00:39]}  Qa5 {[%clk 0:01:29]} 21. Nc5+ {[%clk 0:00:39]}  Bxc5 {[%clk 0:01:05]} 22. Rxc5 {[%clk 0:00:40]}  Qa8 {[%clk 0:01:06]} 23. Rfc1 {[%clk 0:00:16]}  Ne7 {[%clk 0:00:52]} 24. Rc7+ {[%clk 0:00:14]}  Ke8 {[%clk 0:00:53]} 25. Qb4 {[%clk 0:00:13]}  Rd7 {[%clk 0:00:51]} 26. Rxd7 {[%clk 0:00:08]}  Kxd7 {[%clk 0:00:52]} 27. Qd6+ {[%clk 0:00:08]}  Ke8 {[%clk 0:00:53]} 28. Rc7 {[%clk 0:00:09]}  Qd8 {[%clk 0:00:52]} 29. Nd4 {[%clk 0:00:03]}  h5 {[%clk 0:00:45]} 30. Qxd8+ {[%clk 0:00:02]}  Kxd8 {[%clk 0:00:44]} 31. Rxb7 {[%clk 0:00:03]}  hxg4 {[%clk 0:00:40]} 32. Rb8+ {[%clk 0:00:03]}  Nc8 {[%clk 0:00:40]} 33. Nc6+ {[%clk 0:00:02]}  Kc7 {[%clk 0:00:41]} 0-1


[Site "https://www.chess.com"]

[Event "Titled Tuesday Blitz February 14 Late 2023"]
[White "Novikov, Evgenij"]
[Black "Carrasco Miranda, Andres"]
[WhiteFideId "4125380"]
[BlackFideId "3405990"]
[WhiteElo "2276"]
[BlackElo "2240"]
[Result "1-0"]
[Round "05"]
[TimeControl "180+2"]
[Date "2023.02.14"]
[WhiteClock "0:01:11"]
[BlackClock "0:00:21"]

1. e4 {[%clk 0:02:59]}  c5 {[%clk 0:02:59]} 2. Nf3 {[%clk 0:02:57]}  d6 {[%clk 0:03:00]} 3. d4 {[%clk 0:02:57]}  cxd4 {[%clk 0:03:00]} 4. Nxd4 {[%clk 0:02:58]}  Nf6 {[%clk 0:03:00]} 5. Bd3 {[%clk 0:02:58]}  e6 {[%clk 0:02:55]} 6. O-O {[%clk 0:02:57]}  Be7 {[%clk 0:02:55]} 7. c4 {[%clk 0:02:56]}  O-O {[%clk 0:02:54]} 8. Nc3 {[%clk 0:02:57]}  b6 {[%clk 0:02:53]} 9. b3 {[%clk 0:02:41]}  Bb7 {[%clk 0:02:53]} 10. Bb2 {[%clk 0:02:41]}  Nbd7 {[%clk 0:02:51]} 11. Rc1 {[%clk 0:02:37]}  a6 {[%clk 0:02:48]} 12. Bb1 {[%clk 0:02:36]}  Qc7 {[%clk 0:02:42]} 13. f4 {[%clk 0:02:21]}  Rfe8 {[%clk 0:02:38]} 14. Rf3 {[%clk 0:02:12]}  Rad8 {[%clk 0:02:22]} 15. Rh3 {[%clk 0:02:03]}  g6 {[%clk 0:02:16]} 16. g4 {[%clk 0:01:43]}  Nc5 {[%clk 0:02:07]} 17. Nd5 {[%clk 0:01:36]}  exd5 {[%clk 0:02:05]} 18. cxd5 {[%clk 0:01:36]}  Qd7 {[%clk 0:01:55]} 19. Nf5 {[%clk 0:01:17]}  gxf5 {[%clk 0:01:31]} 20. gxf5 {[%clk 0:01:16]}  h5 {[%clk 0:00:21]} 21. Rxh5 {[%clk 0:01:11]}  Nxh5 {[%clk 0:00:21]} 22. Qg4+ {[%clk 0:01:11]} 1-0


[Site "https://www.chess.com"]

[Event "Titled Tuesday Blitz February 14 Late 2023"]
[White "Santos Flores, Alberto"]
[Black "Gerbelli Neto, Eduardo"]
[WhiteFideId "3601234"]
[BlackFideId "2103281"]
[WhiteElo "2164"]
[BlackElo "2114"]
[Result "1-0"]
[Round "05"]
[TimeControl "180+2"]
[Date "2023.02.14"]
[WhiteClock "0:02:08"]
[BlackClock "0:01:28"]

1. e4 {[%clk 0:03:00]}  e5 {[%clk 0:02:59]} 2. Nf3 {[%clk 0:03:00]}  Nc6 {[%clk 0:02:59]} 3. Bc4 {[%clk 0:03:01]}  Nf6 {[%clk 0:02:59]} 4. d3 {[%clk 0:03:01]}  Bc5 {[%clk 0:02:59]} 5. c3 {[%clk 0:03:01]}  d6 {[%clk 0:02:59]} 6. Nbd2 {[%clk 0:02:52]}  a5 {[%clk 0:02:59]} 7. O-O {[%clk 0:02:50]}  O-O {[%clk 0:03:00]} 8. h3 {[%clk 0:02:50]}  h6 {[%clk 0:03:00]} 9. Re1 {[%clk 0:02:49]}  Be6 {[%clk 0:03:00]} 10. Bb5 {[%clk 0:02:49]}  Ne7 {[%clk 0:02:54]} 11. d4 {[%clk 0:02:46]}  exd4 {[%clk 0:02:55]} 12. cxd4 {[%clk 0:02:46]}  Ba7 {[%clk 0:02:56]} 13. Bd3 {[%clk 0:02:38]}  Ng6 {[%clk 0:02:55]} 14. Nf1 {[%clk 0:02:38]}  c5 {[%clk 0:02:52]} 15. d5 {[%clk 0:02:36]}  Bd7 {[%clk 0:02:51]} 16. a4 {[%clk 0:02:35]}  Rb8 {[%clk 0:02:32]} 17. N1d2 {[%clk 0:02:22]}  b5 {[%clk 0:01:51]} 18. axb5 {[%clk 0:02:23]}  Bxb5 {[%clk 0:01:52]} 19. Bxb5 {[%clk 0:02:23]}  Rxb5 {[%clk 0:01:53]} 20. Nc4 {[%clk 0:02:22]}  Bb6 {[%clk 0:01:46]} 21. Bd2 {[%clk 0:02:13]}  Nh5 {[%clk 0:01:33]} 22. Qa4 {[%clk 0:02:10]}  Qe8 {[%clk 0:01:28]} 23. Nxd6 {[%clk 0:02:08]} 1-0


[Site "https://www.chess.com"]